Cogmind - Beta 13 @@@ ROGUE MODE // 2024.04.08 @ 03:20:01 Player: Toa of Guts Result: Self-destructed Performance ------------- Evolutions (3) 1500 Regions Visited (4) 800 Robots Destroyed (39) 195 Value Destroyed (1559) 1559 Prototype IDs (1) 20 Alien Tech Used (0) 0 Bonus (33) 33 TOTAL SCORE: 4107 Bonus ------- High Alert Combat Kills 33 Cogmind --------- Core Integrity 500/700 Matter 239/300 Energy 310/310 System Corruption 1% Temperature Cool (0) Movement Walking (195) Ox1 Location -7/Factory Parts ------- > --- POWER (1) -------- Cooled Deuterium Engine > --- PROPULSION (3) --- Aluminum Leg Titanium Leg > --- UTILITY (5) ------ Large Storage Unit Improved Sensor Array Improved Signal Interpreter > --- WEAPON (4) ------- Gatling Laser Assault Rifle Autogun > --- INVENTORY (15) --- Cooled Deuterium Engine Enhanced Nuclear Core Improved Heat Sink Cooling System Recoil Stabilizer Weapon Cycler Particle Gun Particle Gun Mini Grenade Launcher Katana Peak State ------------ > --- POWER ------------ Cooled Deuterium Engine > --- PROPULSION ------- Light Treads Light Treads Improved Treads > --- UTILITY ---------- Improved Heat Sink Cooling System Large Storage Unit Advanced Visual Processing Unit Hardened Medium Armor Plating > --- WEAPON ----------- Particle Gun Gatling Laser Gauss Rifle Flak Gun > --- INVENTORY -------- Cooled Deuterium Engine Enhanced Nuclear Core Aluminum Leg Titanium Leg Improved Heat Sink Improved Sensor Array Improved Signal Interpreter Recoil Stabilizer Weapon Cycler Particle Gun Assault Rifle Assault Rifle Assault Rifle Mini Grenade Launcher Katana [Rating: 39] Favorites ----------- Power Cooled Deuterium Engine Engine Cooled Deuterium Engine Propulsion Light Treads Treads Light Treads Leg Titanium Leg Wheel Wheel Flight Unit Xenon Bombardment Thruster Utility Cooling System Device Cooling System Storage Small Storage Unit Processor Advanced Visual Processing Unit Protection Hardened Medium Armor Plating Weapon Assault Rifle Energy Gun Particle Gun Ballistic Gun Assault Rifle Launcher Mini Grenade Launcher Slashing Weapon Katana Build | -11 -10 -9 -8 -7 ------- Run | Yrd Mat Mat Mat Fac Slots Evolved 6 | . . 2 2 2 Power . | . . . . . Propulsion 1 | . . . . 1 Utility 3 | . . . 2 1 Weapon 2 | . . 2 . . Parts Attached 73 | 6 3 6 25 33 Power 9 | 1 1 1 3 3 Engine 9 | 1 1 1 3 3 Core . | . . . . . Reactor . | . . . . . Propulsion 18 | 2 . 1 3 12 Treads 9 | 1 . 1 1 6 Leg 3 | . . . . 3 Wheel 3 | 1 . . 2 . Hover . | . . . . . Flight 3 | . . . . 3 Utility 14 | 1 1 . 4 8 Device 5 | . 1 . 1 3 Storage 2 | 1 . . . 1 Processor 3 | . . . 1 2 Hackware . | . . . . . Protection 4 | . . . 2 2 Artifact . | . . . . . Weapon 32 | 2 1 4 15 10 Energy Gun 4 | . . . . 4 Energy Cannon . | . . . . . Ballistic Gun 23 | 2 1 4 10 6 Ballistic Cannon . | . . . . . Launcher 4 | . . . 4 . Special Weapon . | . . . . . Impact Weapon . | . . . . . Slashing Weapon 1 | . . . 1 . Piercing Weapon . | . . . . . Special Melee Weapon . | . . . . . Unidentified Prototypes 1 | . . . . 1 Parts Lost 13 | . . . 2 11 Power . | . . . . . Propulsion 3 | . . . . 3 Utility 4 | . . . 1 3 Weapon 6 | . . . 1 5 Highest Loss Streak 5 | . . . 1 5 To Critical Strikes . | . . . . . Average Slot Usage (%) 94 | . 97 100 96 92 Engine 8 | . 14 11 9 7 Treads 14 | . 14 11 9 19 Wheel 5 | . 14 11 9 . Device 11 | . 11 11 11 10 Storage 8 | . 14 11 9 6 Processor 3 | . . . . 6 Protection 7 | . . . 11 8 Energy Gun 5 | . . . . 10 Ballistic Gun 25 | . 28 44 33 17 Naked Turns . | . . . . . Heaviest Build 59 | 12 16 23 38 59 Greatest Support 63 | 20 20 10 10 63 Greatest Overweight (x) 12 | 1 1 2 3 12 Average Overweight (x) 1 | . . 1 2 . Largest Inventory Capacity 15 | 8 8 8 8 15 Average Capacity 11 | 7 8 8 8 14 Most Carried 15 | 6 8 8 8 15 Average Carried 10 | 4 7 7 7 13 Final Capacity 15 | 8 8 8 8 15 Final Carried 10 | 6 8 8 8 10 Class Distribution -------------------- 42% | Scavenger-Tank 15% | Mutant 13% | Gunner 13% | Scavenger-Skirmisher 11% | Tank Dominant Class ---------------- Mutant | -10/Materials Gunner | -9/Materials Scavenger-Tank | -8/Materials Scavenger-Tank | -7/Factory Resources | -11 -10 -9 -8 -7 ----------- Run | Yrd Mat Mat Mat Fac Matter Collected 1680 | 222 101 77 527 753 Remotely 149 | . . . 149 . Salvage Created 1349 | . 66 87 527 669 Parts 80 | . 3 11 33 33 Haulers Intercepted . | . . . . . Recyclers Shooed 1 | . . . . 1 Parts Field Recycled . | . . . . . Retrieved Matter . | . . . . . Parts Self-Destructed . | . . . . . Prevented . | . . . . . Kills | -11 -10 -9 -8 -7 ------- Run | Yrd Mat Mat Mat Fac Combat Hostiles Destroyed 33 | . 2 4 13 14 Guns 31 | . 2 4 11 14 AOE 2 | . . . 2 . Classes Destroyed 8 | . 1 2 2 3 Worker 3 | . . . 3 . Recycler 2 | . . . . 2 Watcher 1 | . . . . 1 Swarmer 9 | . . 3 3 3 Grunt 11 | . 2 . 3 6 Sentry 7 | . . 1 5 1 Hunter 2 | . . . 2 . Programmer 4 | . . . . 4 Best Kill Streak 5 | . 1 3 3 5 Combat Bots Only 4 | . 1 3 3 4 Max Kills in Single Turn 2 | . 1 1 2 2 Gunslinging 1 | . . . . 1 Exploded 2 | . . . 2 . Melee . | . . . . . Uniques/NPCs Destroyed . | . . . . . Combat | -11 -10 -9 -8 -7 -------- Run | Yrd Mat Mat Mat Fac Hostile Shots Fired 279 | . 13 23 69 174 Missed 95 | . 5 6 25 59 Damage Taken 2798 | . 87 154 787 1770 Core 420 | . 21 9 190 200 Absorbed by Shields . | . . . . . Core Remaining (%) 88 | 100 91 97 65 . Volleys Fired 85 | . 11 8 32 34 Largest 4 | . 2 4 4 4 Hottest 201 | . 40 83 97 201 Shots Fired 283 | . 22 32 105 124 Gun 276 | . 22 32 98 124 Cannon . | . . . . . Launcher 7 | . . . 7 . Special . | . . . . . Kinetic 235 | . 22 32 98 83 Thermal 41 | . . . . 41 Explosive 7 | . . . 7 . Electromagnetic . | . . . . . Robot Hit Streak 21 | . 3 4 12 21 Robot Miss Streak 6 | . 1 6 6 4 Penetration Max 1 | . . . 1 1 Secondary Targets 4 | . . . 1 3 Max Gunslinging Chain 1 | . . . 1 1 Shots Hit Robots 181 | . 14 11 64 92 Core Hits 93 | . 5 5 32 51 Critical Kills 1 | . . 1 . . Critical Parts Destroyed . | . . . . . Critical Strikes 2 | . . 1 . 1 Burn 1 | . . . . 1 Destroy 1 | . . 1 . . Melee Attacks 1 | . . . 1 . Impact . | . . . . . Slashing 1 | . . . 1 . Piercing . | . . . . . Sneak Attacks . | . . . . . Combat Hostiles . | . . . . . Follow-up Attacks . | . . . . . Damage Inflicted 3342 | . 173 138 1356 1675 Guns 2997 | . 173 138 1016 1670 Cannons . | . . . . . Explosions 340 | . . . 340 . Melee . | . . . . . Ramming 5 | . . . . 5 Kinetic 2331 | . 173 138 1016 1004 Thermal 755 | . . . 89 666 Explosive 251 | . . . 251 . Electromagnetic . | . . . . . Impact . | . . . . . Slashing . | . . . . . Piercing . | . . . . . Highest Corruption 2 | . . 2 . 1 Average Corruption 1 | . . 2 . 1 Corruption Purged . | . . . . . Corruption Blocked . | . . . . . Effects 2 | . . 1 . 1 Matter Fused 1 | . . 1 . . Heat Flow Errors 1 | . . . . 1 Overload Shots . | . . . . . Overflow Damage 16 | . . . 16 . Projectiles . | . . . . . Explosions 16 | . . . 16 . Melee . | . . . . . Knockbacks . | . . . . . Impact . | . . . . . Kinetic . | . . . . . Secondary . | . . . . . Self-Inflicted Damage 338 | . . . 174 164 Shots 6 | . . . 2 4 Rammed 2 | . . . . 2 Targets Rammed 2 | . . . . 2 Kicked . | . . . . . Crushed . | . . . . . Highest Temperature 192 | . . . 7 192 Average Temperature 50 | . . . 7 50 Received Heat Transfer 507 | . 48 9 225 225 Siege Activations . | . . . . . Robots Corrupted . | . . . . . Combat Hostiles . | . . . . . Parts Fried . | . . . . . Impact Corruptions . | . . . . . Robots Melted . | . . . . . Combat Hostiles . | . . . . . Parts Melted 2 | . . . . 2 Heat Transferred 1654 | . . . 100 1554 Parts Sabotaged . | . . . . . Parts Stolen . | . . . . . Parts Stripped . | . . . . . Power Chain Reactions . | . . . . . Alert | -11 -10 -9 -8 -7 ------- Run | Yrd Mat Mat Mat Fac Peak Influence 483 | . 90 184 483 368 Initial 167 | . . 37 77 167 Average 222 | . 39 113 289 259 Maximum Alert Level 2 | . . . 2 1 Low Security (%) 30 | 100 100 100 18 4 Level 1 62 | . . . 56 95 Level 2 7 | . . . 24 . Level 3 . | . . . . . Level 4 . | . . . . . Level 5 . | . . . . . High Security . | . . . . . Max Security . | . . . . . Squads Dispatched 8 | . 2 . 1 5 Investigation . | . . . . . Extermination 3 | . . . . 3 Reinforcement 3 | . 2 . 1 . Assault . | . . . . . Garrison 2 | . . . . 2 Intercept . | . . . . . Searches Triggered . | . . . . . Construction Impeded 1 | . . . 1 . Haulers Reinforced . | . . . . . Active Scanning Responses . | . . . . . Cargo Convoy Interrupts . | . . . . . Stealth | -11 -10 -9 -8 -7 --------- Run | Yrd Mat Mat Mat Fac Distress Signals 3 | . . . 3 . Communications Jammed . | . . . . . Distress Signals . | . . . . . Times Spotted 55 | . 6 6 21 22 Peak Tracking Total 5 | . 2 3 5 4 Tactical Retreats 2 | . . . . 2 Traps | -11 -10 -9 -8 -7 ------- Run | Yrd Mat Mat Mat Fac Traps Triggered 2 | . . 1 . 1 Indirectly . | . . . . . Trap Hack Attempts . | . . . . . Triggered . | . . . . . Disarmed . | . . . . . Reprogrammed . | . . . . . Reused . | . . . . . Traps Extracted . | . . . . . Installed . | . . . . . Triggered . | . . . . . Machines | -11 -10 -9 -8 -7 ---------- Run | Yrd Mat Mat Mat Fac Machines Disabled 21 | . . . 5 16 Max in Single Turn 10 | . . . 3 10 Machines Repaired . | . . . . . Machines Dismantled . | . . . . . Machines Sabotaged . | . . . . . Overloaded Fab Kills . | . . . . . Hacking | -11 -10 -9 -8 -7 --------- Run | Yrd Mat Mat Mat Fac Machines Accessed 1 | . . . . 1 Terminals 1 | . . . . 1 Fabricators . | . . . . . Repair Stations . | . . . . . Recycling Units . | . . . . . Scanalyzers . | . . . . . Garrison Access . | . . . . . Total Hacks 1 | . . . . 1 Successful 1 | . . . . 1 Failed . | . . . . . Catastrophic . | . . . . . Database Lockouts . | . . . . . Manual . | . . . . . Terminals 1 | . . . . 1 Fabricators . | . . . . . Repair Stations . | . . . . . Recycling Units . | . . . . . Scanalyzers . | . . . . . Garrison Access . | . . . . . Terminal Hacks 1 | . . . . 1 Alert Level 1 | . . . . 1 Fabricator Hacks . | . . . . . Repair Station Hacks . | . . . . . Recycling Unit Hacks . | . . . . . Scanalyzer . | . . . . . Garrison Access Hacks . | . . . . . Unauthorized Hacks . | . . . . . Terminals . | . . . . . Fabricators . | . . . . . Repair Stations . | . . . . . Recycling Units . | . . . . . Scanalyzers . | . . . . . Garrison Access . | . . . . . Data Cores Recovered . | . . . . . Used . | . . . . . Hacking Detections . | . . . . . Full Trace Events . | . . . . . Feedback Events . | . . . . . Feedback Blocked . | . . . . . Robot Schematics Acquired . | . . . . . Robots Built . | . . . . . Authchips . | . . . . . Time . | . . . . . Total Robot Build Rating . | . . . . . Part Schematics Acquired . | . . . . . Parts Built . | . . . . . Authchips . | . . . . . Time . | . . . . . Total Part Build Rating . | . . . . . Parts Repaired . | . . . . . Time . | . . . . . Parts Recycled . | . . . . . Recycled Matter . | . . . . . Retrieved Matter . | . . . . . Retrieved Components . | . . . . . Parts Scanalyzed . | . . . . . Part Schematics Acquired . | . . . . . Parts Damaged . | . . . . . Bothacking | -11 -10 -9 -8 -7 ------------ Run | Yrd Mat Mat Mat Fac Used RIF Installer . | . . . . . Robots Hacked . | . . . . . Non-combat . | . . . . . Combat . | . . . . . Robot Hacks Applied . | . . . . . Relay Couplers Released . | . . . . . Fabnet Peak Effective % . | . . . . . Robots Rewired . | . . . . . Allies Hacked . | . . . . . Hacks Repelled . | . . . . . Allies | -11 -10 -9 -8 -7 -------- Run | Yrd Mat Mat Mat Fac Total Allies . | . . . . . Largest Group . | . . . . . Highest-Rated Group . | . . . . . Highest-Rated Ally . | . . . . . Total Orders . | . . . . . Ally Attacks . | . . . . . Total Damage . | . . . . . Kills . | . . . . . Allies Corrupted . | . . . . . Allies Melted . | . . . . . Intel | -11 -10 -9 -8 -7 ------- Run | Yrd Mat Mat Mat Fac Robot Analysis Total . | . . . . . Derelict Logs Recovered . | . . . . . Drone Launches . | . . . . . Drone Recoveries . | . . . . . Exploration | -11 -10 -9 -8 -7 ------------- Run | Yrd Mat Mat Mat Fac Turns Passed 2932 | 69 361 242 854 1406 Spaces Moved 1555 | 45 188 182 528 612 Core 11 | 6 . . . 5 Treads 698 | 25 83 . . 590 Legs 7 | . . . . 7 Wheels 836 | 14 105 182 528 7 Hover . | . . . . . Flight 3 | . . . . 3 Fastest Speed 34 | 50 95 95 110 34 Average Speed 139 | 121 123 104 117 173 Slowest Speed 650 | 160 160 110 125 650 Overloaded Moves . | . . . . . Propulsion Burnouts . | . . . . . Robots Hopped . | . . . . . Cave-ins Triggered . | . . . . . Exploration Rate (%) 24 | 3 47 19 42 10 Regions Visited 4 Branch Regions . Pre-discovered Areas . | . . . . . Known Exits Taken . | . . . . . Unknown Exits Taken 4 | 1 1 1 1 . Scrap Searched . | . . . . . Spaces Dug 26 | . . . 26 . Terrain Destroyed 154 | . . . 111 43 Melee 1 | . . . 1 . Projectile . | . . . . . AOE 153 | . . . 110 43 Terrain Rammed . | . . . . . Walls Destroyed . | . . . . . Machines Disabled . | . . . . . Actions | -11 -10 -9 -8 -7 --------- Run | Yrd Mat Mat Mat Fac Total 2122 | 56 296 213 690 867 Wait 323 | . 81 12 83 147 Move 1551 | 44 187 181 527 612 Hop . | . . . . . Pick Up 39 | 6 7 2 6 18 Fast Attach 25 | 6 1 1 5 12 Attach 15 | . . 2 1 12 Detach 2 | . . . 1 1 Swap 33 | . 2 3 19 9 Drop 46 | . 7 4 15 20 Fire 85 | . 11 8 32 34 Melee 1 | . . . 1 . Ram . | . . . . . Kick . | . . . . . Crush 2 | . . . . 2 Escape Stasis . | . . . . . Rewire . | . . . . . Trap . | . . . . . Miscellaneous . | . . . . . Route ------- -11/Scrapyard -10/Materials -9/Materials -8/Materials -7/Factory History --------- Turn | Location | Event 23 | -11/Scrapyard | Discovered new exit (range 15) 70 | -11/Scrapyard | Entered Materials 311 | -10/Materials | Build established: Mutant 408 | -10/Materials | Discovered new exit (range 5) 431 | -10/Materials | Entered another Materials area 431 | -9/Materials | Evolved 2 slots: Weapon x2 580 | -9/Materials | Discovered new exit (range 11) 673 | -9/Materials | Entered another Materials area 673 | -8/Materials | Evolved 2 slots: Utility x2 779 | -8/Materials | Build established: Gunner 1138 | -8/Materials | Build established: Scavenger-Tank 1523 | -8/Materials | Discovered new exit (range 4) 1527 | -8/Materials | Entered Factory 1527 | -7/Factory | Evolved 2 slots: Propulsion x1, Utility x1 2818 | -7/Factory | Garrison activated, responded to threat 2866 | -7/Factory | Lost 4 parts (2n1u1w) 2933 | -7/Factory | Self-destructed Last Messages --------------- 02869_ Flak Gun destroyed. 02871_ Assault Rifle destroyed. 02875_ Gauss Rifle destroyed. 02890_ System corrupted: Heat flow error (+215). 02902_ R-06 Scavenger collects Autogun. 02905_ Imp. Heat Sink destroyed. 02909_ VTOL Module melted. 02909_ S-27 Virus destroyed. 02909_ Switching to secondary target: S-27 Virus. 02913_ S-27 Virus destroyed. 02916_ Neutrino Reactor explodes. 02916_ Door malfunctions. 02920_ Acquired Autogun. 02921_ Acquired 1 matter. 02922_ Neutrino Reactor explodes. 02922_ Door malfunctions. 02931_ Triggered Ambush Trap. 02931_ L-41 Fighter emerges from a hatch in the floor. 02931_ B-48 Gladiator emerges from a hatch in the floor. 02931_ S-27 Virus emerges from a hatch in the floor. Map ----- +----------------------------------------------------+ | ??????# """ """ # #???????????????? | | ####### " " """ # #???????????????? | | """ """ # #???????????????? | | # #???????????????? | | # #???????????????? | | ###############???????????????? | | # = #???????????????????? | | ##########+### # #???????????????????? | | ## # # """ """ #???????????????????? | | ## # # """ """ #???????????????????? | | ## """" # + """ """ #???????????????????? | | ## [ """" # # #???????????????????? | | ## """" # # #???????????????????? | | ## """" # # #???????????????????? | | " ## # ###########???????????????????? | | " ## # #?????????????????????????????? | | " ############ #?????????????????????????????? | | ?#??????????# #?????????????????????????????? | | ????????????# #??????##############?????????? | | ????????????# ######?# #?????????? | | #???????????## #?# #?????????? | | ????????????# #?# #?????????? | | ????????????#T """ ### #?????????? | | ????????????## """ / #?????????? | | ?????????????# """ # #?????????? | | ?????????????# b@s #?????????? | | ?????????????# """ l # #?????????? | | ?????????????# """ r # #?????????? | | ?????????????# """ ### #?????????? | | ?????????????# #?# #?????????? | | ?????????????# #?# [% #?????????? | | ?????????????/ #### #?#########/####?????????? | | ???????????? # #??# #?????????#[#????????????? | | ???????????? # ???# #?????????# #????????????? | | ?????????????? ???#+??????????# #????????????? | | ?????????????? ? ???????????????# #????????????? | | ??????????????????????????????????# #????????????? | | ??????????????????????????????????# #????????????? | | ??????????????????????????????????# #????????????? | | ??????????????????????????????????# #????????????? | | ??????????????????????????????????# #????????????? | | ??????????????????????????????????# #????????????? | | ??????????????????????????????????# #????????????? | | ??????????????????????????????????#%#????????????? | | ?????????????????????????????????? ????????????? | | ?????????????????????????????????? ????????????? | | ????????????????????????????????? ???????????? | | ????????????????????????????????? ???????????? | | ???????????????????????????????? ??????????? | | ???????????????????????????????? " ??????????? | +----------------------------------------------------+ Best States ------------- Heat Dissipation 70 Energy Generation 18 Energy Capacity 310 Matter Stores 300 Matter Capacity 300 Sight Range 20 Robot Scan Range 15 Terrain Scan Density 10 Armor Coverage 375 Evasion (%) 44 Recoil Reduction 3 Item Schematics ----------------- None Robot Schematics ------------------ None Fabricated ------------ Nothing Alien Tech Used ----------------- None Achievements -------------- It Was An Accident, I Swear Challenges ------------ None Game ------ Seed BlastUtilityMachine Manual? 0 Play Time 00:34:14 Cumulative 86.9 hours Start 2024.04.08 @ 02:45:24 End 2024.04.08 @ 03:20:01 Sessions 1 Manual Loads 0 Difficulty Rogue Special Mode None Game No. 63 Rogue 63 Adventurer 0 Explorer 0 Win Type - Total 0 Types 0/0/0/0/0/0/0/0/0 Lore% 32 Gallery% 45 Achievement% 29 Wizard Run 0 Options --------- Layout 0 ASCII 0 Keyboard 0 Movement Mouse Keybinds 0 Fullscreen 1 Font 24/X11 Map View 76x50 Zoom Use 0% Tactical HUD 1 Map Filters NONE Filters NONE Steam 1 RUN: 22f803bc-bf42-43a2-99d6-70cccc172d48